Cogmind - Beta 11 @@@ ROGUE MODE // 2022.03.30 @ 00:10:36 Player: arcadio Result: Smashed by cave-in Performance ------------- Evolutions (0) 0 Regions Visited (2) 400 Robots Destroyed (14) 70 Value Destroyed (326) 326 Prototype IDs (0) 0 Alien Tech Used (0) 0 Bonus (0) 0 TOTAL SCORE: 796 Bonus ------- None Cogmind --------- Core Integrity 0/250 Matter 263/300 Energy 246/250 System Corruption 1% Temperature Cool (20) Movement Treading (160) Location -10/Mines Parts ------- > --- POWER (1) -------- Ion Engine > --- PROPULSION (2) --- Light Treads Light Treads > --- UTILITY (2) ------ Large Storage Unit Seismic Detector > --- WEAPON (2) ------- Light Assault Rifle Mining Laser > --- INVENTORY (15) --- Ion Engine Ion Engine Aluminum Leg Aluminum Leg Aluminum Leg Aluminum Leg High-capacity Matter Pod (0) Particle Cannon Light Assault Rifle Peak State ------------ > --- POWER ------------ Ion Engine > --- PROPULSION ------- Compact Wheel Compact Wheel > --- UTILITY ---------- Small Storage Unit Shield Generator > --- WEAPON ----------- Particle Cannon Particle Cannon > --- INVENTORY -------- Ion Engine Light Treads Light Treads Aluminum Leg Aluminum Leg Compact Wheel Light Assault Rifle Mining Laser [Rating: 10] Favorites ----------- Power Ion Engine Engine Ion Engine Propulsion Light Treads Treads Light Treads Wheel Compact Wheel Utility Large Storage Unit Device Seismic Detector Storage Large Storage Unit Weapon Particle Cannon Energy Gun EM Pulse Gun Energy Cannon Particle Cannon Ballistic Gun Light Assault Rifle Special Weapon Mining Laser Build | -11 -10 -10 ------- Run | Scr Mat Min Slots Evolved . | . . . Power . | . . . Propulsion . | . . . Utility . | . . . Weapon . | . . . Parts Attached 28 | 6 17 5 Power 3 | 1 2 . Engine 3 | 1 2 . Core . | . . . Reactor . | . . . Propulsion 7 | 2 5 . Treads 2 | . 2 . Leg . | . . . Wheel 5 | 2 3 . Hover . | . . . Flight . | . . . Utility 4 | 1 3 . Device 2 | . 2 . Storage 2 | 1 1 . Processor . | . . . Hackware . | . . . Protection . | . . . Artifact . | . . . Weapon 14 | 2 7 5 Energy Gun 2 | 2 . . Energy Cannon 4 | . 4 . Ballistic Gun 4 | . 2 2 Ballistic Cannon . | . . . Launcher . | . . . Special Weapon 4 | . 1 3 Impact Weapon . | . . . Slashing Weapon . | . . . Piercing Weapon . | . . . Special Melee Weapon . | . . . Unidentified Prototypes . | . . . Parts Lost 3 | . 3 . Power . | . . . Propulsion 2 | . 2 . Utility 1 | . 1 . Weapon . | . . . Highest Loss Streak 3 | . 3 . To Critical Strikes . | . . . Average Slot Usage (%) 95 | . 92 100 Engine 14 | . 14 14 Treads 14 | . 6 28 Wheel 12 | . 20 . Device 11 | . 9 14 Storage 14 | . 14 14 Energy Gun 5 | . 9 . Energy Cannon 10 | . 11 8 Ballistic Gun 8 | . 4 16 Special Weapon 1 | . . 3 Naked Turns . | . . . Heaviest Build 31 | 14 31 31 Greatest Support 40 | 32 40 40 Greatest Overweight (x) 2 | 2 1 . Average Overweight (x) . | . . . Largest Inventory Capacity 15 | 8 15 15 Average Capacity 12 | 6 10 15 Most Carried 9 | 6 9 9 Average Carried 6 | 2 6 7 Final Capacity 15 | 8 15 15 Final Carried 9 | 6 4 9 Class Distribution -------------------- 100% | Mutant Dominant Class ---------------- Mutant | -10/Materials Mutant | -10/Mines Resources | -11 -10 -10 ----------- Run | Scr Mat Min Matter Collected 500 | 224 192 84 Remotely . | . . . Salvage Created 467 | . 340 127 Parts 33 | . 29 4 Haulers Intercepted 1 | . 1 . Recyclers Shooed . | . . . Parts Field Recycled . | . . . Retrieved Matter . | . . . Parts Self-Destructed . | . . . Prevented . | . . . Kills | -11 -10 -10 ------- Run | Scr Mat Min Combat Hostiles Destroyed 15 | . 11 4 Melee 1 | . 1 . Guns 5 | . 2 3 Cannons 9 | . 8 1 Classes Destroyed 4 | . 3 1 Hauler 1 | . 1 . Swarmer 6 | . 6 . Grunt 7 | . 5 2 Assembled 2 | . . 2 Best Kill Streak 3 | . 3 1 Combat Bots Only 3 | . 3 1 Max Kills in Single Turn 1 | . 1 1 Gunslinging . | . . . Exploded . | . . . Melee 1 | . 1 . Uniques/NPCs Destroyed . | . . . Combat | -11 -10 -10 -------- Run | Scr Mat Min Damage Taken 898 | . 452 446 Core 275 | . 114 161 Absorbed by Shields 162 | . 162 . Core Remaining (%) 100 | 100 . . Volleys Fired 84 | . 35 49 Largest 2 | . 2 2 Hottest 136 | . 136 100 Shots Fired 127 | . 60 67 Gun 58 | . 17 41 Cannon 52 | . 43 9 Launcher . | . . . Special 17 | . . 17 Kinetic 56 | . 15 41 Thermal 69 | . 43 26 Explosive . | . . . Electromagnetic 2 | . 2 . Robot Hit Streak 10 | . 3 10 Robot Miss Streak 4 | . 4 3 Penetration Max . | . . . Secondary Targets . | . . . Shots Hit Robots 55 | . 25 30 Core Hits 27 | . 16 11 Critical Kills . | . . . Critical Parts Destroyed . | . . . Critical Strikes . | . . . Melee Attacks . | . . . Impact . | . . . Slashing . | . . . Piercing . | . . . Sneak Attacks . | . . . Combat Hostiles . | . . . Follow-up Attacks . | . . . Damage Inflicted 867 | . 553 314 Guns 246 | . 53 193 Cannons 592 | . 471 121 Explosions . | . . . Melee . | . . . Ramming 29 | . 29 . Kinetic 246 | . 53 193 Thermal 592 | . 471 121 Explosive . | . . . Electromagnetic . | . . . Impact . | . . . Slashing . | . . . Piercing . | . . . Highest Corruption 1 | . 1 1 Average Corruption 1 | . 1 1 Corruption Purged . | . . . Corruption Blocked . | . . . Overload Shots . | . . . Overflow Damage 1 | . 1 . Projectiles 1 | . 1 . Explosions . | . . . Melee . | . . . Knockbacks . | . . . Impact . | . . . Kinetic . | . . . Secondary . | . . . Self-Inflicted Damage 12 | . 12 . Shots . | . . . Rammed 9 | . 9 . Targets Rammed 9 | . 9 . Kicked . | . . . Crushed . | . . . Highest Temperature 446 | . 446 388 Average Temperature 128 | . 166 81 Received Heat Transfer 227 | . 68 159 Effects 6 | . 6 . Shutdowns 2 | . 2 . Energy Bleed 1 | . 1 . Interference 2 | . 2 . Matter Decay 1 | . 1 . Siege Activations . | . . . Robots Corrupted . | . . . Combat Hostiles . | . . . Parts Fried . | . . . Impact Corruptions . | . . . Robots Melted . | . . . Combat Hostiles . | . . . Parts Melted 3 | . 3 . Heat Transferred 1073 | . 851 222 Parts Sabotaged . | . . . Parts Stolen . | . . . Parts Stripped . | . . . Power Chain Reactions . | . . . Missiles Intercepted . | . . . Alert | -11 -10 -10 ------- Run | Scr Mat Min Peak Influence 227 | . 227 110 Initial 51 | . . 51 Average 77 | . 76 93 Maximum Alert Level 1 | . 1 . Low Security (%) 94 | 100 90 100 Level 1 5 | . 9 . Level 2 . | . . . Level 3 . | . . . Level 4 . | . . . Level 5 . | . . . High Security . | . . . Max Security . | . . . Squads Dispatched 3 | . 3 . Investigation 1 | . 1 . Extermination . | . . . Reinforcement 2 | . 2 . Assault . | . . . Garrison . | . . . Intercept . | . . . Searches Triggered . | . . . Construction Impeded . | . . . Haulers Reinforced . | . . . Active Scanning Responses . | . . . Cargo Convoy Interrupts . | . . . Stealth | -11 -10 -10 --------- Run | Scr Mat Min Distress Signals 2 | . 2 . Communications Jammed . | . . . Distress Signals . | . . . Times Spotted 26 | . 22 4 Peak Tracking Total 6 | . 6 2 Tactical Retreats 1 | . 1 . Traps | -11 -10 -10 ------- Run | Scr Mat Min Traps Triggered 3 | . 3 . Indirectly . | . . . Trap Hack Attempts . | . . . Triggered . | . . . Disarmed . | . . . Reprogrammed . | . . . Reused . | . . . Traps Extracted . | . . . Installed . | . . . Triggered . | . . . Machines | -11 -10 -10 ---------- Run | Scr Mat Min Machines Disabled . | . . . Max in Single Turn . | . . . Machines Sabotaged . | . . . Garrisons Compromised . | . . . Overloaded Fab Kills . | . . . Hacking | -11 -10 -10 --------- Run | Scr Mat Min Machines Accessed 5 | . 4 1 Terminals 5 | . 4 1 Fabricators . | . . . Repair Stations . | . . . Recycling Units . | . . . Scanalyzers . | . . . Garrison Access . | . . . Total Hacks 14 | . 13 1 Successful 3 | . 3 . Failed 11 | . 10 1 Catastrophic 1 | . . 1 Database Lockouts . | . . . Manual 14 | . 13 1 Terminals 14 | . 13 1 Fabricators . | . . . Repair Stations . | . . . Recycling Units . | . . . Scanalyzers . | . . . Garrison Access . | . . . Terminal Hacks . | . . . Fabricator Hacks . | . . . Repair Station Hacks . | . . . Recycling Unit Hacks . | . . . Scanalyzer . | . . . Garrison Access Hacks . | . . . Unauthorized Hacks 3 | . 3 . Terminals 3 | . 3 . Botnet 1 | . 1 . Operators 2 | . 2 . Fabricators . | . . . Repair Stations . | . . . Recycling Units . | . . . Scanalyzers . | . . . Garrison Access . | . . . Data Cores Recovered . | . . . Used . | . . . Hacking Detections 5 | . 4 1 Full Trace Events . | . . . Feedback Events . | . . . Feedback Blocked . | . . . Robot Schematics Acquired . | . . . Robots Built . | . . . Authchips . | . . . Time . | . . . Total Robot Build Rating . | . . . Part Schematics Acquired . | . . . Parts Built . | . . . Authchips . | . . . Time . | . . . Total Part Build Rating . | . . . Parts Repaired . | . . . Time . | . . . Parts Recycled . | . . . Recycled Matter . | . . . Retrieved Matter . | . . . Retrieved Components . | . . . Parts Scanalyzed . | . . . Part Schematics Acquired . | . . . Parts Damaged . | . . . Bothacking | -11 -10 -10 ------------ Run | Scr Mat Min Used RIF Installer . | . . . Robots Hacked . | . . . Non-combat . | . . . Combat . | . . . Robot Hacks Applied . | . . . Relay Couplers Released . | . . . Fabnet Peak Effective % . | . . . Robots Rewired . | . . . Allies Hacked . | . . . Hacks Repelled . | . . . Allies | -11 -10 -10 -------- Run | Scr Mat Min Total Allies . | . . . Largest Group . | . . . Highest-Rated Group . | . . . Highest-Rated Ally . | . . . Total Orders . | . . . Ally Attacks . | . . . Total Damage . | . . . Kills . | . . . Allies Corrupted . | . . . Allies Melted . | . . . Intel | -11 -10 -10 ------- Run | Scr Mat Min Robot Analysis Total . | . . . Derelict Logs Recovered . | . . . Drone Launches . | . . . Drone Recoveries . | . . . Exploration | -11 -10 -10 ------------- Run | Scr Mat Min Turns Passed 1116 | 71 655 390 Spaces Moved 629 | 52 434 143 Core 12 | 12 . . Treads 240 | . 97 143 Legs . | . . . Wheels 377 | 40 337 . Hover . | . . . Flight . | . . . Fastest Speed 50 | 50 100 160 Average Speed 123 | 106 113 160 Slowest Speed 160 | 150 160 160 Overloaded Moves . | . . . Propulsion Burnouts . | . . . Robots Hopped . | . . . Cave-ins Triggered 1 | . . 1 Exploration Rate (%) 38 | 5 73 38 Regions Visited 2 Branch Regions 1 Pre-discovered Areas . | . . . Known Exits Taken . | . . . Unknown Exits Taken 2 | 1 1 . Scrap Searched 1 | . . 1 Spaces Dug 4 | . . 4 Terrain Destroyed 5 | . . 5 Melee . | . . . Projectile 5 | . . 5 AOE . | . . . Terrain Rammed . | . . . Walls Destroyed . | . . . Machines Disabled . | . . . Actions | -11 -10 -10 --------- Run | Scr Mat Min Total 809 | 64 536 209 Wait 42 | 1 34 7 Move 627 | 51 433 143 Hop . | . . . Pick Up 14 | 6 3 5 Fast Attach 10 | 6 4 . Attach 5 | . 5 . Detach . | . . . Swap 13 | . 8 5 Drop 5 | . 5 . Fire 84 | . 35 49 Melee . | . . . Ram 9 | . 9 . Kick . | . . . Crush . | . . . Escape Stasis . | . . . Rewire . | . . . Trap . | . . . Miscellaneous . | . . . Route ------- -11/Scrapyard -10/Materials (discovered 3 exits: [*Mat] / *Min x2) -10/Mines History --------- Turn | Location | Event 24 | -11/Scrapyard | Discovered new exit (range 16) 72 | -11/Scrapyard | Entered Materials 183 | -10/Materials | Discovered new exit (range 12) 263 | -10/Materials | Discovered new exit (range 10) 315 | -10/Materials | Build established: Mutant 594 | -10/Materials | Lost 3 parts (2n1u) 685 | -10/Materials | Discovered new exit (range 8) 727 | -10/Materials | Entered Mines 763 | -10/Mines | Core integrity fell below 50% 963 | -10/Mines | Excavation squad dispatched 963 | -10/Mines | A large section of the Mines collapsed 1118 | -10/Mines | Crushed by falling debris 1118 | -10/Mines | Smashed by cave-in Last Messages --------------- 00817_ R-06 Scavenger collects Imp. Heat Sink. 00819_ K-01 Serf collects debris. 00823_ Acquired 1 matter. 00824_ K-01 Serf collects debris. 00839_ Searching scrap... 00839_ Found Lgt. Assault Rifle. 00839_ Found Hover Unit. 00839_ Found Hcp. Matter Pod. 00839_ Found 22 Matter. 00843_ K-01 Serf collects debris. 00843_ Acquired Lgt. Assault Rifle. 00853_ Acquired Hcp. Matter Pod. 00963_ ALERT: Suspicious cave-in, suspected derelict activity in mines. Dispatching escorted excavation squad. 00997_ as-11456 destroyed. 01050_ as-80488 destroyed. 01054_ Acquired 20 matter. 01056_ Acquired 11 matter. 01118_ The unstable cave ceiling collapses. 01118_ Crushed by falling debris. Map ----- +----------------------------------------------------+ | ??????????????? ???# ##????????? #????? | | ??????????????? #?## #?????????## #????? | | ??????????????# ## #???????????# ?????? | | ??????????????# #??????????????????? | | ???????????????# ##?????????????????? | | ???????????????## ##????????????????? | | ????????????????# ##???????????????? | | ????????????????# #???????????????? | | ????????????????## #???????????????? | | ?????????????????## #???????????????? | | ??????????????????## #### #???????????????? | | ???????????????????## #???# #???????????????? | | ????????????????????# #????# #???????????????? | | ????????????????????# ?????# #???????????????? | | ????????????????????## #?????# ###?????????????? | | ????????????????##???###?????## #?????????????? | | ???????????????## ??????????# #?????????????? | | ???????????????# ??###????# #?????????????? | | ?????????????? ## #### ##?????????????? | | ?????????????? % ##??????????????? | | ?????????????? ##????###???????? | | ?????????????? ##### ######??? | | ????????????????### ####### | | ??????????????????## #??????## | | ???????????????????## #;##?????## ####### ? | | ????????????????????#???#@##?????# ##??????? ? | | ????????????????????????## ####??# #??????? ?? | | ?????????????????????????##;#"#??# #??????# ??? | | ??????????????????????????## #???# #?????# #??? | | ?????????????????????????### # ??# #????? #??? | | ???????????????????????### # ########???? #??? | | ??????????????????????## # ## ! #???? #??? | | ??????????????????????# ## #= "#??? #???? | | ???????????????????? ##"#! ##?# #????? | | ???????????????????? ###"######## #?????? | | ????????????????????? ## # ### #"####?????? | | ????????????????????????## #### #"# ## ##????? | | ?????????????????????????####?#####"##"# # #????? | | ??????????????????????????????????####### #????? | | ?????????????????????????????????????###" #????? | | ???????????????????????????????????????### #????? | | ?????????????????????????????????????????#% #????? | | ?????????????????????????????????????????# ???? | | ?????????????????????????????????????????# ###??? | | ?????????????????????????????????????????# #????? | | ????????????????????????????????????????? #????? | | ?????????????????????????????????????????####????? | | ?????????????????????????????????????????????????? | | ?????????????????????????????????????????????????? | | ?????????????????????????????????????????????????? | +----------------------------------------------------+ Best States ------------- Heat Dissipation 25 Energy Generation 10 Energy Capacity 250 Matter Stores 300 Matter Capacity 300 Sight Range 16 Terrain Scan Density 10 Evasion (%) 40 Recoil Reduction 2 Item Schematics ----------------- None Robot Schematics ------------------ None Fabricated ------------ Nothing Alien Tech Used ----------------- None Achievements -------------- Fist Fight Challenges ------------ None Game ------ Seed HypervelocitySpreadBoosters Manual? 0 Play Time 00:17:41 Cumulative 32.9 hours Start 2022.03.29 @ 23:56:42 End 2022.03.30 @ 00:10:36 Sessions 1 Manual Loads 0 Difficulty Rogue Special Mode None Game No. 31 Rogue 31 Adventurer 0 Explorer 0 Win Type - Total 0 Types 0/0/0/0/0/0/0/0/0 Lore% 24 Gallery% 31 Achievement% 26 Wizard Run 0 Options --------- ASCII 0 Keyboard 0 Movement Numpad Keybinds 0 Fullscreen 2 Font 18/SmallcapsGlow Map View 76x50 Tactical HUD 1 Map Filters NONE Filters NONE Steam 1 RUN: 9897b891-de45-43ae-a27f-7893356bef96